[Event "*** Titled Tuesday Blitz"]
[Site "Chess.com"]
[Date "2020.12.29"]
[Round "8"]
[White "HrvojeZagreb"]
[Black "Loy_Konstantin"]
[Result "1-0"]
[WhiteElo "2241"]
[BlackElo "2374"]
[TimeControl "180+1"]
[EndTime "11:28:02 PST"]
[Termination "HrvojeZagreb won on time"]

1. d4 {[%clk 0:03:00.9]} 1... Nf6 {[%clk 0:02:59.6]} 2. Bf4 {[%clk 0:03:00.6]}
2... g6 {[%clk 0:02:59.4]} 3. Nc3 {[%clk 0:03:00.3]} 3... Bg7 {[%clk 0:02:57.5]}
4. e4 {[%clk 0:03:00.2]} 4... d6 {[%clk 0:02:56.6]} 5. Qd2 {[%clk 0:03:00]} 5...
O-O {[%clk 0:02:48]} 6. O-O-O {[%clk 0:02:59.4]} 6... Nbd7 {[%clk 0:02:47]} 7.
Bh6 {[%clk 0:02:58.7]} 7... Bxh6 {[%clk 0:02:45.3]} 8. Qxh6 {[%clk 0:02:59.6]}
8... e5 {[%clk 0:02:45.8]} 9. dxe5 {[%clk 0:02:58.3]} 9... dxe5 {[%clk
0:02:42.7]} 10. h4 {[%clk 0:02:50.7]} 10... c6 {[%clk 0:02:36.8]} 11. h5 {[%clk
0:02:49.8]} 11... Qe7 {[%clk 0:02:36.1]} 12. hxg6 {[%clk 0:02:45]} 12... fxg6
{[%clk 0:02:35.7]} 13. Bc4+ {[%clk 0:02:44.4]} 13... Kh8 {[%clk 0:02:24]} 14.
Qxg6 {[%clk 0:02:27.3]} 14... Nb6 {[%clk 0:02:23.8]} 15. Bb3 {[%clk 0:02:23.8]}
15... Be6 {[%clk 0:02:24]} 16. Nf3 {[%clk 0:02:16.4]} 16... Bxb3 {[%clk
0:02:20.2]} 17. axb3 {[%clk 0:02:17.3]} 17... Rg8 {[%clk 0:02:16.4]} 18. Qf5
{[%clk 0:02:05]} 18... Rxg2 {[%clk 0:02:11.7]} 19. Nxe5 {[%clk 0:01:56.4]} 19...
Rag8 {[%clk 0:02:04.2]} 20. Nd3 {[%clk 0:01:40.6]} 20... R2g5 {[%clk 0:01:48.7]}
21. Qh3 {[%clk 0:01:33.7]} 21... Nbd7 {[%clk 0:01:34.1]} 22. f4 {[%clk
0:01:29.6]} 22... Rh5 {[%clk 0:01:30.6]} 23. Qf3 {[%clk 0:01:21.3]} 23... Rxh1
{[%clk 0:01:29.2]} 24. Rxh1 {[%clk 0:01:22.2]} 24... Qg7 {[%clk 0:01:13]} 25. e5
{[%clk 0:01:16.2]} 25... Ne8 {[%clk 0:00:49.5]} 26. Ne4 {[%clk 0:01:03.1]} 26...
Nf8 {[%clk 0:00:30.2]} 27. f5 {[%clk 0:00:50.4]} 27... Qg4 {[%clk 0:00:27.3]}
28. Rf1 {[%clk 0:00:39.6]} 28... Qxf3 {[%clk 0:00:25.7]} 29. Rxf3 {[%clk
0:00:40.5]} 29... Rg4 {[%clk 0:00:22.6]} 30. Nef2 {[%clk 0:00:33.1]} 30... Rg1+
{[%clk 0:00:20.3]} 31. Kd2 {[%clk 0:00:33.4]} 31... Kg8 {[%clk 0:00:20.7]} 32.
Nf4 {[%clk 0:00:30.7]} 32... Kf7 {[%clk 0:00:18.7]} 33. e6+ {[%clk 0:00:26.7]}
33... Kf6 {[%clk 0:00:17.2]} 34. Nh5+ {[%clk 0:00:25.1]} 34... Kg5 {[%clk
0:00:13.2]} 35. e7 {[%clk 0:00:20.9]} 35... Nd7 {[%clk 0:00:12.2]} 36. f6 {[%clk
0:00:15.8]} 36... Kxh5 {[%clk 0:00:08.4]} 37. f7 {[%clk 0:00:15.3]} 37... Kg6
{[%clk 0:00:02.4]} 38. fxe8=Q+ {[%clk 0:00:13.6]} 1-0

[Event "*** Titled Tuesday Blitz"]
[Site "Chess.com"]
[Date "2020.12.29"]
[Round "8"]
[White "ehrenfeld"]
[Black "ExcitingTrap"]
[Result "0-1"]
[WhiteElo "2523"]
[BlackElo "2365"]
[TimeControl "180+1"]
[EndTime "11:28:04 PST"]
[Termination "ExcitingTrap won on time"]

1. e4 {[%clk 0:03:00.9]} 1... e6 {[%clk 0:02:59.3]} 2. d4 {[%clk 0:03:00.7]}
2... d5 {[%clk 0:02:57.1]} 3. e5 {[%clk 0:03:00.8]} 3... c5 {[%clk 0:02:56.7]}
4. c3 {[%clk 0:03:00.9]} 4... Nc6 {[%clk 0:02:56.7]} 5. Nf3 {[%clk 0:03:00.9]}
5... Qb6 {[%clk 0:02:56.4]} 6. a3 {[%clk 0:02:59.6]} 6... Bd7 {[%clk 0:02:56.4]}
7. b4 {[%clk 0:02:56.8]} 7... cxd4 {[%clk 0:02:56.8]} 8. cxd4 {[%clk 0:02:56.4]}
8... Nh6 {[%clk 0:02:55.7]} 9. Nc3 {[%clk 0:02:43.9]} 9... Nf5 {[%clk
0:02:52.3]} 10. Na4 {[%clk 0:02:38.8]} 10... Qd8 {[%clk 0:02:50.4]} 11. Bb2
{[%clk 0:02:28.2]} 11... a6 {[%clk 0:02:50.8]} 12. Bd3 {[%clk 0:02:22]} 12... b5
{[%clk 0:02:49.4]} 13. Nc5 {[%clk 0:02:21]} 13... Bxc5 {[%clk 0:02:49.6]} 14.
dxc5 {[%clk 0:02:13.8]} 14... Nh4 {[%clk 0:02:49.6]} 15. O-O {[%clk 0:02:11]}
15... Nxf3+ {[%clk 0:02:46.1]} 16. Qxf3 {[%clk 0:02:10.3]} 16... Qg5 {[%clk
0:02:45.1]} 17. Qe2 {[%clk 0:02:07.7]} 17... O-O {[%clk 0:02:38]} 18. f4 {[%clk
0:02:07.5]} 18... Qd8 {[%clk 0:02:33.7]} 19. Qh5 {[%clk 0:02:03.4]} 19... g6
{[%clk 0:02:32.8]} 20. Qh6 {[%clk 0:02:03.2]} 20... Qe7 {[%clk 0:02:21.8]} 21.
Rf3 {[%clk 0:02:00.4]} 21... d4 {[%clk 0:02:04.8]} 22. Re1 {[%clk 0:01:32.5]}
22... f5 {[%clk 0:02:00.5]} 23. exf6 {[%clk 0:01:30]} 23... Qxf6 {[%clk
0:01:59.6]} 24. h4 {[%clk 0:01:23.7]} 24... Qg7 {[%clk 0:01:40.5]} 25. Qg5
{[%clk 0:01:23.1]} 25... Qf6 {[%clk 0:01:40.9]} 26. Qg3 {[%clk 0:00:58.8]} 26...
a5 {[%clk 0:01:34.3]} 27. bxa5 {[%clk 0:00:36.1]} 27... Rxa5 {[%clk 0:01:28.8]}
28. h5 {[%clk 0:00:35.3]} 28... Kg7 {[%clk 0:01:27]} 29. hxg6 {[%clk 0:00:34.5]}
29... hxg6 {[%clk 0:01:27.9]} 30. Re5 {[%clk 0:00:27]} 30... Rh8 {[%clk
0:01:06.1]} 31. Rg5 {[%clk 0:00:26.2]} 31... Be8 {[%clk 0:01:06.4]} 32. f5
{[%clk 0:00:24]} 32... Ne5 {[%clk 0:00:37.5]} 33. Rf4 {[%clk 0:00:18.8]} 33...
Nxd3 {[%clk 0:00:34.3]} 34. Bxd4 {[%clk 0:00:11.6]} 34... e5 {[%clk 0:00:34.6]}
35. fxg6 {[%clk 0:00:02.8]} 35... Qxf4 {[%clk 0:00:17.8]} 36. Qxf4 {[%clk
0:00:01.9]} 36... Nxf4 {[%clk 0:00:17.7]} 37. Bxe5+ {[%clk 0:00:02.1]} 37... Kh6
{[%clk 0:00:17.8]} 38. Bxf4 {[%clk 0:00:02.3]} 38... Bxg6 {[%clk 0:00:15.6]} 0-1

[Event "*** Titled Tuesday Blitz"]
[Site "Chess.com"]
[Date "2020.12.29"]
[Round "8"]
[White "SantoBlue"]
[Black "TheBigBoss04"]
[Result "1-0"]
[WhiteElo "2878"]
[BlackElo "2753"]
[TimeControl "180+1"]
[EndTime "11:28:05 PST"]
[Termination "SantoBlue won on time"]

1. e4 {[%clk 0:02:57.9]} 1... c5 {[%clk 0:03:00]} 2. Nf3 {[%clk 0:02:57.8]} 2...
d6 {[%clk 0:03:00.4]} 3. d4 {[%clk 0:02:58.1]} 3... cxd4 {[%clk 0:03:01.3]} 4.
Nxd4 {[%clk 0:02:58.9]} 4... Nf6 {[%clk 0:03:01.7]} 5. Nc3 {[%clk 0:02:59.1]}
5... a6 {[%clk 0:03:02.3]} 6. a3 {[%clk 0:02:59.3]} 6... g6 {[%clk 0:03:01.8]}
7. f3 {[%clk 0:02:58.7]} 7... Bg7 {[%clk 0:03:01.6]} 8. Be3 {[%clk 0:02:59.3]}
8... Nbd7 {[%clk 0:03:01]} 9. Qd2 {[%clk 0:02:59.2]} 9... h5 {[%clk 0:03:01.3]}
10. O-O-O {[%clk 0:02:59.1]} 10... b5 {[%clk 0:02:56.9]} 11. Nd5 {[%clk
0:02:59.3]} 11... Bb7 {[%clk 0:02:46.9]} 12. Nxf6+ {[%clk 0:02:51.3]} 12... Nxf6
{[%clk 0:02:45]} 13. h4 {[%clk 0:02:47.6]} 13... Qc7 {[%clk 0:02:37.6]} 14. Kb1
{[%clk 0:02:47.8]} 14... Nd7 {[%clk 0:02:27]} 15. Bd3 {[%clk 0:02:40.6]} 15...
Ne5 {[%clk 0:02:25]} 16. Bg5 {[%clk 0:02:18]} 16... Nc4 {[%clk 0:02:07.4]} 17.
Bxc4 {[%clk 0:02:17.2]} 17... Qxc4 {[%clk 0:02:08.1]} 18. Rhe1 {[%clk
0:02:11.5]} 18... Rc8 {[%clk 0:01:07.4]} 19. c3 {[%clk 0:01:34.3]} 19... Qc7
{[%clk 0:00:43.3]} 20. f4 {[%clk 0:01:31.7]} 20... O-O {[%clk 0:00:27.2]} 21. f5
{[%clk 0:01:31.9]} 21... Rfe8 {[%clk 0:00:24.2]} 22. fxg6 {[%clk 0:01:31.3]}
22... fxg6 {[%clk 0:00:20.3]} 23. Ne6 {[%clk 0:01:31.7]} 23... Qc4 {[%clk
0:00:19.2]} 24. Nxg7 {[%clk 0:01:31.9]} 24... Bxe4+ {[%clk 0:00:13.7]} 25. Ka1
{[%clk 0:01:32.2]} 25... Kxg7 {[%clk 0:00:13.9]} 26. b3 {[%clk 0:01:05.5]} 26...
Qxb3 {[%clk 0:00:09.7]} 27. Rxe4 {[%clk 0:00:58.6]} 27... Rxc3 {[%clk
0:00:10.2]} 28. Rb1 {[%clk 0:00:20.7]} 28... Qxa3+ {[%clk 0:00:07.4]} 29. Qa2
{[%clk 0:00:20.9]} 29... Qc5 {[%clk 0:00:07.8]} 30. Qb2 {[%clk 0:00:18.2]} 30...
e5 {[%clk 0:00:08.3]} 31. Rc1 {[%clk 0:00:13.3]} 31... b4 {[%clk 0:00:04.9]} 32.
Rxc3 {[%clk 0:00:12]} 32... bxc3 {[%clk 0:00:05.8]} 33. Qb7+ {[%clk 0:00:12.6]}
33... Kg8 {[%clk 0:00:05.3]} 34. Bh6 {[%clk 0:00:10.7]} 34... Qa3+ {[%clk
0:00:03.9]} 35. Kb1 {[%clk 0:00:11.2]} 35... c2+ {[%clk 0:00:01.6]} 36. Kxc2
{[%clk 0:00:11.3]} 36... Qa2+ {[%clk 0:00:02.2]} 37. Kd1 {[%clk 0:00:10.1]} 1-0

[Event "*** Titled Tuesday Blitz"]
[Site "Chess.com"]
[Date "2020.12.29"]
[Round "8"]
[White "andriipalchuk"]
[Black "elohunter1999"]
[Result "0-1"]
[WhiteElo "2490"]
[BlackElo "2680"]
[TimeControl "180+1"]
[EndTime "11:28:05 PST"]
[Termination "elohunter1999 won by resignation"]

1. e4 {[%clk 0:03:00.9]} 1... c5 {[%clk 0:02:59]} 2. Nf3 {[%clk 0:03:00.2]} 2...
d6 {[%clk 0:02:59.1]} 3. Bb5+ {[%clk 0:03:00.1]} 3... Nd7 {[%clk 0:02:57.9]} 4.
Ba4 {[%clk 0:03:00.6]} 4... Nf6 {[%clk 0:02:56.9]} 5. c4 {[%clk 0:03:01.1]} 5...
Nxe4 {[%clk 0:02:51]} 6. O-O {[%clk 0:02:57.7]} 6... Nf6 {[%clk 0:02:45.9]} 7.
d4 {[%clk 0:02:57.6]} 7... cxd4 {[%clk 0:02:44.3]} 8. Nxd4 {[%clk 0:02:57.2]}
8... g6 {[%clk 0:02:38]} 9. Nb5 {[%clk 0:02:44.4]} 9... a6 {[%clk 0:02:33.2]}
10. Nxd6+ {[%clk 0:02:40.4]} 10... exd6 {[%clk 0:02:30.9]} 11. Re1+ {[%clk
0:02:41]} 11... Be7 {[%clk 0:02:16.2]} 12. Qxd6 {[%clk 0:02:41.5]} 12... b5
{[%clk 0:02:02]} 13. cxb5 {[%clk 0:02:40.4]} 13... h5 {[%clk 0:01:48.8]} 14. Qc6
{[%clk 0:01:19.4]} 14... Rb8 {[%clk 0:01:41.9]} 15. Bf4 {[%clk 0:01:16.9]} 15...
Rb6 {[%clk 0:01:34.8]} 16. Qc2 {[%clk 0:01:15.5]} 16... O-O {[%clk 0:01:13]} 17.
Bc7 {[%clk 0:01:12.1]} 17... Qe8 {[%clk 0:01:12.9]} 18. Bxb6 {[%clk 0:01:05]}
18... Nxb6 {[%clk 0:01:13.8]} 19. Bb3 {[%clk 0:00:59.6]} 19... Bf5 {[%clk
0:01:06.7]} 20. Qc7 {[%clk 0:00:57.1]} 20... Nbd5 {[%clk 0:01:00.9]} 21. Qe5
{[%clk 0:00:52.2]} 21... Qxb5 {[%clk 0:00:57.3]} 22. Nc3 {[%clk 0:00:49.5]}
22... Nxc3 {[%clk 0:00:55.3]} 23. Qxe7 {[%clk 0:00:43.6]} 23... Ncd5 {[%clk
0:00:47.8]} 24. Qe5 {[%clk 0:00:40.5]} 24... Be6 {[%clk 0:00:45.2]} 25. Rad1
{[%clk 0:00:38]} 25... Rc8 {[%clk 0:00:40.5]} 26. Qg5 {[%clk 0:00:35.6]} 26...
Qb6 {[%clk 0:00:36.4]} 27. h3 {[%clk 0:00:33.3]} 27... a5 {[%clk 0:00:34.5]} 28.
Re2 {[%clk 0:00:15.4]} 28... Rc5 {[%clk 0:00:28.9]} 29. Qd2 {[%clk 0:00:08.8]}
29... Qc7 {[%clk 0:00:27.9]} 30. Qd4 {[%clk 0:00:05.7]} 30... Rc1 {[%clk
0:00:25.9]} 31. Ree1 {[%clk 0:00:06.3]} 31... Rc5 {[%clk 0:00:22]} 32. Qd3
{[%clk 0:00:02.3]} 32... Nf4 {[%clk 0:00:20.4]} 33. Qg3 {[%clk 0:00:02.9]} 33...
Bxb3 {[%clk 0:00:19.1]} 34. axb3 {[%clk 0:00:02.7]} 34... Rc2 {[%clk 0:00:19]}
35. Re3 {[%clk 0:00:02.5]} 35... Ne2+ {[%clk 0:00:18.1]} 36. Rxe2 {[%clk
0:00:02.5]} 36... Qxg3 {[%clk 0:00:17.2]} 37. Re8+ {[%clk 0:00:01.1]} 37... Nxe8
{[%clk 0:00:16.9]} 38. fxg3 {[%clk 0:00:02]} 38... Rxb2 {[%clk 0:00:17.1]} 39.
Ra1 {[%clk 0:00:02.5]} 39... Rxb3 {[%clk 0:00:16.7]} 40. Rxa5 {[%clk 0:00:03.4]}
0-1

[Event "*** Titled Tuesday Blitz"]
[Site "Chess.com"]
[Date "2020.12.29"]
[Round "8"]
[White "UCantHandleDenker"]
[Black "Koalaskakistis"]
[Result "1-0"]
[WhiteElo "2553"]
[BlackElo "2368"]
[TimeControl "180+1"]
[EndTime "11:28:05 PST"]
[Termination "UCantHandleDenker won by resignation"]

1. Nf3 {[%clk 0:03:00.9]} 1... Nf6 {[%clk 0:02:59]} 2. g3 {[%clk 0:03:00.6]}
2... g6 {[%clk 0:02:58.9]} 3. Bg2 {[%clk 0:02:59.7]} 3... Bg7 {[%clk 0:02:59.8]}
4. O-O {[%clk 0:03:00]} 4... O-O {[%clk 0:03:00.7]} 5. d3 {[%clk 0:03:00.4]}
5... d5 {[%clk 0:02:59]} 6. Nbd2 {[%clk 0:03:00.8]} 6... c5 {[%clk 0:02:51.9]}
7. e4 {[%clk 0:03:00.1]} 7... Nc6 {[%clk 0:02:52.2]} 8. Re1 {[%clk 0:02:58.7]}
8... e6 {[%clk 0:02:48.8]} 9. c3 {[%clk 0:02:57.6]} 9... a5 {[%clk 0:02:47.9]}
10. a3 {[%clk 0:02:57.8]} 10... a4 {[%clk 0:02:46.7]} 11. h4 {[%clk 0:02:57.7]}
11... h5 {[%clk 0:02:44.2]} 12. e5 {[%clk 0:02:56.7]} 12... Ng4 {[%clk
0:02:44.1]} 13. d4 {[%clk 0:02:56]} 13... cxd4 {[%clk 0:02:43.7]} 14. cxd4
{[%clk 0:02:56.3]} 14... Qb6 {[%clk 0:02:42.3]} 15. Nf1 {[%clk 0:02:53.8]} 15...
f6 {[%clk 0:02:38.9]} 16. exf6 {[%clk 0:02:43.8]} 16... Bxf6 {[%clk 0:02:39.8]}
17. Be3 {[%clk 0:02:43.9]} 17... Nxe3 {[%clk 0:02:36.7]} 18. fxe3 {[%clk
0:02:25.7]} 18... Qxb2 {[%clk 0:02:34.7]} 19. Qd3 {[%clk 0:02:13.7]} 19... Kg7
{[%clk 0:02:32.2]} 20. Reb1 {[%clk 0:02:11.9]} 20... Qxa1 {[%clk 0:02:13.2]} 21.
Rxa1 {[%clk 0:02:09.6]} 21... Na5 {[%clk 0:02:14.1]} 22. N1h2 {[%clk 0:02:04.1]}
22... Nc4 {[%clk 0:02:09.7]} 23. g4 {[%clk 0:02:00.4]} 23... Bd7 {[%clk
0:02:08.6]} 24. Kh1 {[%clk 0:01:52.9]} 24... Be7 {[%clk 0:02:07.7]} 25. gxh5
{[%clk 0:01:47.6]} 25... gxh5 {[%clk 0:02:07.1]} 26. Bh3 {[%clk 0:01:46.4]}
26... Kf7 {[%clk 0:02:06.2]} 27. Rf1 {[%clk 0:01:29.8]} 27... Ke8 {[%clk
0:02:01.8]} 28. Qg6+ {[%clk 0:01:22.3]} 28... Kd8 {[%clk 0:01:59.5]} 29. Ne5
{[%clk 0:01:14]} 29... Rxf1+ {[%clk 0:01:56.5]} 30. Nxf1 {[%clk 0:01:13.2]}
30... Nxe5 {[%clk 0:01:56.6]} 31. dxe5 {[%clk 0:01:12.6]} 31... Kc7 {[%clk
0:01:55.3]} 32. Qf7 {[%clk 0:01:06.1]} 32... Bxa3 {[%clk 0:01:50.5]} 33. Bxe6
{[%clk 0:01:04.8]} 33... Rd8 {[%clk 0:01:51.4]} 34. Bxd5 {[%clk 0:01:03.1]}
34... Kb8 {[%clk 0:01:45.6]} 35. e6 {[%clk 0:01:00]} 35... Bc8 {[%clk
0:01:45.7]} 36. Ba2 {[%clk 0:00:44.3]} 36... Rf8 {[%clk 0:01:44.5]} 37. Qxh5
{[%clk 0:00:32.8]} 37... Rxf1+ {[%clk 0:01:43.7]} 38. Kg2 {[%clk 0:00:33.2]}
38... Rc1 {[%clk 0:01:15.1]} 39. Qe5+ {[%clk 0:00:32.2]} 39... Ka7 {[%clk
0:00:55.3]} 40. Qa5+ {[%clk 0:00:31]} 40... Kb8 {[%clk 0:00:54.7]} 41. Qe5+
{[%clk 0:00:30.5]} 41... Ka7 {[%clk 0:00:54.4]} 42. e7 {[%clk 0:00:27.1]} 42...
Bxe7 {[%clk 0:00:53.2]} 43. Qxe7 {[%clk 0:00:24.7]} 43... Rc2+ {[%clk
0:00:53.2]} 44. Kf3 {[%clk 0:00:24.7]} 44... Rxa2 {[%clk 0:00:54.1]} 45. Qc5+
{[%clk 0:00:23.9]} 45... Kb8 {[%clk 0:00:54.3]} 46. Qd6+ {[%clk 0:00:23.8]}
46... Ka8 {[%clk 0:00:54.6]} 47. h5 {[%clk 0:00:20.3]} 47... Ra1 {[%clk
0:00:39.9]} 48. Qc7 {[%clk 0:00:18.9]} 48... Be6 {[%clk 0:00:33.3]} 49. Qd8+
{[%clk 0:00:16.4]} 49... Ka7 {[%clk 0:00:33.7]} 50. Qa5+ {[%clk 0:00:16.6]}
50... Kb8 {[%clk 0:00:32.4]} 51. Qe5+ {[%clk 0:00:17.1]} 1-0

[Event "*** Titled Tuesday Blitz"]
[Site "Chess.com"]
[Date "2020.12.29"]
[Round "8"]
[White "comsac"]
[Black "Kazmin_Dmitrij"]
[Result "1-0"]
[WhiteElo "2412"]
[BlackElo "2261"]
[TimeControl "180+1"]
[EndTime "11:28:05 PST"]
[Termination "comsac won on time"]

1. e4 {[%clk 0:03:00.9]} 1... e5 {[%clk 0:02:54.6]} 2. Nf3 {[%clk 0:03:00.7]}
2... d6 {[%clk 0:02:54.4]} 3. d4 {[%clk 0:02:59.9]} 3... exd4 {[%clk 0:02:53.8]}
4. Nxd4 {[%clk 0:03:00.8]} 4... Nf6 {[%clk 0:02:54]} 5. Nc3 {[%clk 0:03:00.7]}
5... Be7 {[%clk 0:02:53.9]} 6. Bc4 {[%clk 0:02:59.8]} 6... O-O {[%clk
0:02:53.6]} 7. O-O {[%clk 0:02:59.8]} 7... c6 {[%clk 0:02:52.5]} 8. a4 {[%clk
0:02:59.7]} 8... a5 {[%clk 0:02:51.1]} 9. Be3 {[%clk 0:02:49.2]} 9... Re8 {[%clk
0:02:45.7]} 10. f3 {[%clk 0:02:43.5]} 10... Bf8 {[%clk 0:02:43.8]} 11. Bf2
{[%clk 0:02:43.1]} 11... Nbd7 {[%clk 0:02:43.1]} 12. Nf5 {[%clk 0:02:40.2]}
12... Ne5 {[%clk 0:02:42.8]} 13. Ne3 {[%clk 0:02:23.5]} 13... Nxc4 {[%clk
0:02:23.5]} 14. Nxc4 {[%clk 0:02:24.4]} 14... Be6 {[%clk 0:02:19.9]} 15. Bb6
{[%clk 0:02:12]} 15... Qe7 {[%clk 0:02:15.9]} 16. Ne3 {[%clk 0:01:48]} 16... Nd7
{[%clk 0:02:08.3]} 17. Bd4 {[%clk 0:01:34]} 17... Qd8 {[%clk 0:01:30.3]} 18. Nf5
{[%clk 0:01:30.7]} 18... d5 {[%clk 0:01:15]} 19. Ng3 {[%clk 0:01:07.2]} 19... c5
{[%clk 0:01:10.9]} 20. exd5 {[%clk 0:01:03.9]} 20... cxd4 {[%clk 0:01:08]} 21.
dxe6 {[%clk 0:01:04.2]} 21... Rxe6 {[%clk 0:01:02.3]} 22. Nce4 {[%clk
0:01:00.9]} 22... Ne5 {[%clk 0:00:46.5]} 23. f4 {[%clk 0:00:46.7]} 23... Nc4
{[%clk 0:00:43.6]} 24. f5 {[%clk 0:00:40.1]} 24... Rh6 {[%clk 0:00:36.3]} 25.
Qc1 {[%clk 0:00:25.5]} 25... Qh4 {[%clk 0:00:29.3]} 26. h3 {[%clk 0:00:25.7]}
26... Ne3 {[%clk 0:00:27.1]} 27. Rf3 {[%clk 0:00:20.5]} 27... Rc8 {[%clk
0:00:25.6]} 28. Rxe3 {[%clk 0:00:20]} 28... dxe3 {[%clk 0:00:24.9]} 29. Qxe3
{[%clk 0:00:20.9]} 29... Rxc2 {[%clk 0:00:18.6]} 30. Rf1 {[%clk 0:00:19.4]}
30... Rxb2 {[%clk 0:00:13.3]} 31. Qc3 {[%clk 0:00:17.9]} 31... Rb4 {[%clk
0:00:10.9]} 32. Qc2 {[%clk 0:00:14.7]} 32... Qd8 {[%clk 0:00:07.8]} 33. f6
{[%clk 0:00:13.8]} 33... Rg6 {[%clk 0:00:06.4]} 34. Qf2 {[%clk 0:00:07.3]} 34...
gxf6 {[%clk 0:00:05.2]} 35. Nxf6+ {[%clk 0:00:06.8]} 35... Kh8 {[%clk
0:00:05.1]} 36. Nfh5 {[%clk 0:00:05.4]} 36... Be7 {[%clk 0:00:03.8]} 37. Qxf7
{[%clk 0:00:05.3]} 1-0

[Event "*** Titled Tuesday Blitz"]
[Site "Chess.com"]
[Date "2020.12.29"]
[Round "8"]
[White "Jungle_Jaguar"]
[Black "Chessmatus"]
[Result "1-0"]
[WhiteElo "2614"]
[BlackElo "2451"]
[TimeControl "180+1"]
[EndTime "11:28:06 PST"]
[Termination "Jungle_Jaguar won by resignation"]

1. e4 {[%clk 0:03:00.9]} 1... c5 {[%clk 0:03:00.2]} 2. Nf3 {[%clk 0:03:00.8]}
2... d6 {[%clk 0:03:00.2]} 3. d4 {[%clk 0:03:01.4]} 3... cxd4 {[%clk 0:03:01.1]}
4. Nxd4 {[%clk 0:03:02.3]} 4... Nf6 {[%clk 0:03:01.3]} 5. Nc3 {[%clk 0:03:02.6]}
5... a6 {[%clk 0:03:01.9]} 6. Be3 {[%clk 0:03:02.9]} 6... e5 {[%clk 0:03:02]} 7.
Nb3 {[%clk 0:03:03.2]} 7... Be7 {[%clk 0:03:02.6]} 8. f3 {[%clk 0:03:03.5]} 8...
h5 {[%clk 0:03:00.3]} 9. Qd2 {[%clk 0:03:03.1]} 9... Be6 {[%clk 0:03:00.3]} 10.
Nd5 {[%clk 0:02:54.9]} 10... Bxd5 {[%clk 0:03:00.4]} 11. exd5 {[%clk 0:02:54.9]}
11... Nbd7 {[%clk 0:03:00.1]} 12. O-O-O {[%clk 0:02:55.4]} 12... Nb6 {[%clk
0:02:56.5]} 13. Qa5 {[%clk 0:02:48.4]} 13... Nfd7 {[%clk 0:02:54.2]} 14. Kb1
{[%clk 0:02:44.8]} 14... Qc7 {[%clk 0:02:52.2]} 15. c4 {[%clk 0:02:41.3]} 15...
Rc8 {[%clk 0:02:38.1]} 16. Rc1 {[%clk 0:02:40]} 16... Bd8 {[%clk 0:02:24.8]} 17.
Be2 {[%clk 0:02:30.4]} 17... Nf6 {[%clk 0:02:18.2]} 18. Rhd1 {[%clk 0:02:15.5]}
18... O-O {[%clk 0:02:16.1]} 19. Qe1 {[%clk 0:01:46.9]} 19... Nbd7 {[%clk
0:02:13.4]} 20. c5 {[%clk 0:01:21.5]} 20... Nxc5 {[%clk 0:01:30.8]} 21. Nxc5
{[%clk 0:01:22.4]} 21... dxc5 {[%clk 0:01:31.2]} 22. Bxc5 {[%clk 0:01:22.1]}
22... Re8 {[%clk 0:01:30.8]} 23. d6 {[%clk 0:01:14]} 23... Qd7 {[%clk
0:01:30.8]} 24. Qb4 {[%clk 0:01:05.3]} 24... b6 {[%clk 0:00:51.7]} 25. Bg1
{[%clk 0:00:36.5]} 25... b5 {[%clk 0:00:47.1]} 26. Rxc8 {[%clk 0:00:26.5]} 26...
Qxc8 {[%clk 0:00:48]} 27. h3 {[%clk 0:00:18.6]} 27... Qf5+ {[%clk 0:00:44.9]}
28. Ka1 {[%clk 0:00:17.5]} 28... Nd7 {[%clk 0:00:39.8]} 29. Bd3 {[%clk
0:00:17.6]} 29... Qe6 {[%clk 0:00:39.3]} 30. Be4 {[%clk 0:00:17.3]} 30... Bb6
{[%clk 0:00:25.4]} 31. Bxb6 {[%clk 0:00:13.5]} 31... Nxb6 {[%clk 0:00:25.4]} 32.
Qc5 {[%clk 0:00:13.7]} 32... Nd7 {[%clk 0:00:17.5]} 33. Qc7 {[%clk 0:00:14]}
33... Nf6 {[%clk 0:00:03.1]} 34. Bc6 {[%clk 0:00:13.5]} 34... Rf8 {[%clk
0:00:02.4]} 35. d7 {[%clk 0:00:13.4]} 35... Qe7 {[%clk 0:00:02.8]} 36. d8=Q
{[%clk 0:00:12.7]} 36... Rxd8 {[%clk 0:00:01.7]} 37. Rxd8+ {[%clk 0:00:13.1]}
1-0